[Event "Titled Tuesday Blitz September 28 2021"]
[White "Shtembuliak, Evgeny"]
[Black "Moskvin, Anatoly"]
[WhiteFideId "14113325"]
[BlackFideId "24199990"]
[WhiteElo "2504"]
[BlackElo "2098"]
[Result "1-0"]
[Round "03"]
[TimeControl "180+1"]
[Date "2021.09.28"]
[WhiteClock "0:00:22"]
[BlackClock "0:00:05"]

1. e4 {[%clk 0:03:00]}  e5 {[%clk 0:02:58]} 2. Nf3 {[%clk 0:03:00]}  d5 {[%clk 0:02:59]} 3. exd5 {[%clk 0:02:55]}  e4 {[%clk 0:02:59]} 4. Qe2 {[%clk 0:02:53]}  Nf6 {[%clk 0:02:59]} 5. d3 {[%clk 0:02:53]}  Qxd5 {[%clk 0:02:57]} 6. Nbd2 {[%clk 0:02:42]}  Be7 {[%clk 0:02:46]} 7. dxe4 {[%clk 0:02:38]}  Qh5 {[%clk 0:02:42]} 8. Qb5+ {[%clk 0:02:37]}  Qxb5 {[%clk 0:02:42]} 9. Bxb5+ {[%clk 0:02:38]}  c6 {[%clk 0:02:42]} 10. Bc4 {[%clk 0:02:33]}  O-O {[%clk 0:02:42]} 11. c3 {[%clk 0:02:33]}  b5 {[%clk 0:02:36]} 12. Bb3 {[%clk 0:02:33]}  Na6 {[%clk 0:02:37]} 13. Nd4 {[%clk 0:02:29]}  Bd7 {[%clk 0:02:27]} 14. e5 {[%clk 0:02:24]}  Nd5 {[%clk 0:02:00]} 15. N2f3 {[%clk 0:02:22]}  Nac7 {[%clk 0:01:51]} 16. O-O {[%clk 0:02:20]}  c5 {[%clk 0:01:47]} 17. Ne2 {[%clk 0:02:17]}  Bg4 {[%clk 0:01:43]} 18. Nf4 {[%clk 0:02:09]}  Bxf3 {[%clk 0:01:31]} 19. gxf3 {[%clk 0:02:09]}  c4 {[%clk 0:01:11]} 20. Bc2 {[%clk 0:02:07]}  Bc5 {[%clk 0:01:11]} 21. a4 {[%clk 0:01:57]}  a6 {[%clk 0:01:11]} 22. axb5 {[%clk 0:01:44]}  axb5 {[%clk 0:01:11]} 23. Rxa8 {[%clk 0:01:44]}  Rxa8 {[%clk 0:01:12]} 24. Be4 {[%clk 0:01:44]}  Nxf4 {[%clk 0:00:56]} 25. Bxa8 {[%clk 0:01:41]}  Ne2+ {[%clk 0:00:55]} 26. Kg2 {[%clk 0:01:40]}  Nxa8 {[%clk 0:00:55]} 27. Be3 {[%clk 0:01:36]}  Bxe3 {[%clk 0:00:33]} 28. fxe3 {[%clk 0:01:37]}  Nb6 {[%clk 0:00:32]} 29. Kf2 {[%clk 0:01:23]}  Nxc3 {[%clk 0:00:31]} 30. bxc3 {[%clk 0:01:24]}  Kf8 {[%clk 0:00:30]} 31. Rb1 {[%clk 0:01:23]}  Nd5 {[%clk 0:00:30]} 32. Rxb5 {[%clk 0:01:23]}  Nxc3 {[%clk 0:00:31]} 33. Rc5 {[%clk 0:01:21]}  Nd1+ {[%clk 0:00:22]} 34. Ke2 {[%clk 0:01:18]}  Nb2 {[%clk 0:00:23]} 35. f4 {[%clk 0:01:16]}  Ke7 {[%clk 0:00:23]} 36. Kd2 {[%clk 0:01:15]}  Ke6 {[%clk 0:00:22]} 37. Kc2 {[%clk 0:01:10]}  Nd3 {[%clk 0:00:17]} 38. Rxc4 {[%clk 0:01:09]}  Ne1+ {[%clk 0:00:18]} 39. Kd2 {[%clk 0:01:04]}  Nf3+ {[%clk 0:00:19]} 40. Kd3 {[%clk 0:01:03]}  Nxh2 {[%clk 0:00:20]} 41. Ke4 {[%clk 0:01:02]}  Nf1 {[%clk 0:00:13]} 42. Rc6+ {[%clk 0:01:01]}  Kd7 {[%clk 0:00:13]} 43. Ra6 {[%clk 0:01:01]}  Ng3+ {[%clk 0:00:12]} 44. Kd5 {[%clk 0:01:01]}  Nf5 {[%clk 0:00:13]} 45. Ra7+ {[%clk 0:01:01]}  Ke8 {[%clk 0:00:13]} 46. e4 {[%clk 0:01:01]}  Ne7+ {[%clk 0:00:10]} 47. Kc5 {[%clk 0:00:59]}  h5 {[%clk 0:00:08]} 48. f5 {[%clk 0:00:59]}  h4 {[%clk 0:00:04]} 49. Ra8+ {[%clk 0:00:54]}  Kd7 {[%clk 0:00:04]} 50. Rh8 {[%clk 0:00:55]}  g5 {[%clk 0:00:04]} 51. Rh7 {[%clk 0:00:48]}  Ke8 {[%clk 0:00:02]} 52. e6 {[%clk 0:00:46]}  fxe6 {[%clk 0:00:02]} 53. f6 {[%clk 0:00:47]}  Ng6 {[%clk 0:00:02]} 54. Kd6 {[%clk 0:00:45]}  Nf4 {[%clk 0:00:02]} 55. e5 {[%clk 0:00:34]}  h3 {[%clk 0:00:03]} 56. Rg7 {[%clk 0:00:22]}  g4 {[%clk 0:00:02]} 57. Rxg4 {[%clk 0:00:21]}  Kf7 {[%clk 0:00:02]} 58. Rh4 {[%clk 0:00:22]}  h2 {[%clk 0:00:02]} 59. Rxh2 {[%clk 0:00:22]}  Ng6 {[%clk 0:00:02]} 60. Rh7+ {[%clk 0:00:22]}  Kg8 {[%clk 0:00:03]} 61. Rg7+ {[%clk 0:00:22]}  Kh8 {[%clk 0:00:04]} 62. Rxg6 {[%clk 0:00:22]}  Kh7 {[%clk 0:00:04]} 63. Rg7+ {[%clk 0:00:23]}  Kh8 {[%clk 0:00:05]} 64. Rg1 {[%clk 0:00:22]} 1-0


[Site "https://www.chess.com"]

[Event "Titled Tuesday Blitz September 28 2021"]
[White "Siva Mahadevan"]
[Black "Jeet, Jain"]
[WhiteFideId "25043153"]
[BlackFideId "5073022"]
[WhiteElo "2815"]
[BlackElo "2597"]
[Result "1-0"]
[Round "03"]
[TimeControl "180+1"]
[Date "2021.09.28"]
[WhiteClock "0:01:43"]
[BlackClock "0:01:06"]

1. e4 {[%clk 0:03:00]}  e5 {[%clk 0:02:59]} 2. Nf3 {[%clk 0:03:00]}  Nc6 {[%clk 0:02:59]} 3. Bb5 {[%clk 0:03:01]}  a6 {[%clk 0:02:59]} 4. Ba4 {[%clk 0:03:01]}  Nf6 {[%clk 0:03:00]} 5. O-O {[%clk 0:03:02]}  Be7 {[%clk 0:03:00]} 6. Re1 {[%clk 0:03:02]}  b5 {[%clk 0:03:01]} 7. Bb3 {[%clk 0:03:02]}  d6 {[%clk 0:03:01]} 8. c3 {[%clk 0:03:02]}  O-O {[%clk 0:03:01]} 9. h3 {[%clk 0:03:03]}  Na5 {[%clk 0:03:02]} 10. Bc2 {[%clk 0:03:03]}  c5 {[%clk 0:03:02]} 11. d4 {[%clk 0:03:04]}  Qc7 {[%clk 0:03:03]} 12. Nbd2 {[%clk 0:03:04]}  Bd7 {[%clk 0:03:03]} 13. d5 {[%clk 0:02:59]}  c4 {[%clk 0:03:02]} 14. Nf1 {[%clk 0:02:56]}  Nb7 {[%clk 0:03:02]} 15. Ng3 {[%clk 0:02:45]}  Rfc8 {[%clk 0:03:02]} 16. Nh4 {[%clk 0:02:26]}  g6 {[%clk 0:03:01]} 17. f4 {[%clk 0:02:01]}  Nxd5 {[%clk 0:02:05]} 18. Nxg6 {[%clk 0:02:01]}  hxg6 {[%clk 0:02:04]} 19. exd5 {[%clk 0:01:58]}  Bf6 {[%clk 0:01:58]} 20. f5 {[%clk 0:01:52]}  Kg7 {[%clk 0:01:51]} 21. fxg6 {[%clk 0:01:45]}  fxg6 {[%clk 0:01:52]} 22. Nh5+ {[%clk 0:01:46]}  gxh5 {[%clk 0:01:38]} 23. Qxh5 {[%clk 0:01:47]}  Be8 {[%clk 0:01:26]} 24. Qh7+ {[%clk 0:01:46]}  Kf8 {[%clk 0:01:26]} 25. Bh6+ {[%clk 0:01:46]}  Bg7 {[%clk 0:01:25]} 26. Rf1+ {[%clk 0:01:47]}  Bf7 {[%clk 0:01:12]} 27. Qxg7+ {[%clk 0:01:47]}  Ke8 {[%clk 0:01:11]} 28. Rxf7 {[%clk 0:01:47]}  Qxf7 {[%clk 0:01:10]} 29. Bg6 {[%clk 0:01:48]}  Nd8 {[%clk 0:01:06]} 30. Rf1 {[%clk 0:01:47]}  Ra7 {[%clk 0:01:05]} 31. Bxf7+ {[%clk 0:01:43]}  Rxf7 {[%clk 0:01:06]} 32. Rxf7 {[%clk 0:01:42]}  Nxf7 {[%clk 0:01:06]} 33. Qf8+ {[%clk 0:01:43]} 1-0


[Site "https://www.chess.com"]

[Event "Titled Tuesday Blitz September 28 2021"]
[White "Sjugirov, Sanan"]
[Black "Begmuratov, Khumoyun"]
[WhiteFideId "4189302"]
[BlackFideId "14210207"]
[WhiteElo "2987"]
[BlackElo "2727"]
[Result "1-0"]
[Round "03"]
[TimeControl "180+1"]
[Date "2021.09.28"]
[WhiteClock "0:00:38"]
[BlackClock "0:00:01"]

1. d4 {[%clk 0:03:00]}  Nf6 {[%clk 0:02:59]} 2. c4 {[%clk 0:03:00]}  g6 {[%clk 0:02:58]} 3. Nc3 {[%clk 0:02:59]}  Bg7 {[%clk 0:02:59]} 4. e4 {[%clk 0:02:59]}  d6 {[%clk 0:02:59]} 5. Nf3 {[%clk 0:02:59]}  O-O {[%clk 0:03:00]} 6. h3 {[%clk 0:02:56]}  b6 {[%clk 0:02:50]} 7. Bd3 {[%clk 0:02:47]}  Bb7 {[%clk 0:02:50]} 8. O-O {[%clk 0:02:47]}  Nbd7 {[%clk 0:02:48]} 9. Bc2 {[%clk 0:02:41]}  e5 {[%clk 0:02:41]} 10. d5 {[%clk 0:02:37]}  a5 {[%clk 0:02:40]} 11. a3 {[%clk 0:02:29]}  Ba6 {[%clk 0:02:27]} 12. b3 {[%clk 0:02:29]}  h6 {[%clk 0:02:20]} 13. Rb1 {[%clk 0:02:27]}  Nh5 {[%clk 0:02:18]} 14. Be3 {[%clk 0:02:18]}  Qe7 {[%clk 0:01:54]} 15. Nd2 {[%clk 0:02:12]}  Nf4 {[%clk 0:01:49]} 16. b4 {[%clk 0:02:08]}  axb4 {[%clk 0:01:47]} 17. axb4 {[%clk 0:02:09]}  Nf6 {[%clk 0:01:04]} 18. Ra1 {[%clk 0:01:56]}  Nh7 {[%clk 0:01:03]} 19. Ba4 {[%clk 0:01:52]}  Bb7 {[%clk 0:01:00]} 20. c5 {[%clk 0:01:41]}  bxc5 {[%clk 0:00:55]} 21. bxc5 {[%clk 0:01:42]}  Ba6 {[%clk 0:00:53]} 22. Bb5 {[%clk 0:01:39]}  Bxb5 {[%clk 0:00:51]} 23. Nxb5 {[%clk 0:01:40]}  Rxa1 {[%clk 0:00:34]} 24. Qxa1 {[%clk 0:01:41]}  Qh4 {[%clk 0:00:34]} 25. Qd1 {[%clk 0:01:31]}  Ng5 {[%clk 0:00:27]} 26. Bxf4 {[%clk 0:01:24]}  Qxf4 {[%clk 0:00:19]} 27. cxd6 {[%clk 0:01:21]}  cxd6 {[%clk 0:00:18]} 28. Nxd6 {[%clk 0:01:22]}  f5 {[%clk 0:00:18]} 29. Qe2 {[%clk 0:01:14]}  Rd8 {[%clk 0:00:14]} 30. Nb7 {[%clk 0:01:06]}  Rb8 {[%clk 0:00:14]} 31. Nc5 {[%clk 0:00:58]}  fxe4 {[%clk 0:00:09]} 32. Ndxe4 {[%clk 0:00:56]}  Bf8 {[%clk 0:00:06]} 33. Nxg5 {[%clk 0:00:54]}  Qxg5 {[%clk 0:00:06]} 34. Ne4 {[%clk 0:00:51]}  Qd8 {[%clk 0:00:04]} 35. Rd1 {[%clk 0:00:50]}  Bd6 {[%clk 0:00:04]} 36. Qg4 {[%clk 0:00:49]}  Kg7 {[%clk 0:00:03]} 37. h4 {[%clk 0:00:40]}  h5 {[%clk 0:00:02]} 38. Qg5 {[%clk 0:00:39]}  Qxg5 {[%clk 0:00:01]} 39. hxg5 {[%clk 0:00:39]}  Kf7 {[%clk 0:00:01]} 40. Nxd6+ {[%clk 0:00:38]} 1-0


[Site "https://www.chess.com"]

[Event "Titled Tuesday Blitz September 28 2021"]
[White "Timofeev, Artyom"]
[Black "Ghimpu, Samuel-Timotei"]
[WhiteFideId "4140419"]
[BlackFideId "1238175"]
[WhiteElo "2874"]
[BlackElo "2624"]
[Result "1-0"]
[Round "03"]
[TimeControl "180+1"]
[Date "2021.09.28"]
[WhiteClock "0:01:24"]
[BlackClock "0:00:22"]

1. c4 {[%clk 0:03:00]}  g6 {[%clk 0:02:57]} 2. g3 {[%clk 0:03:00]}  c6 {[%clk 0:02:56]} 3. Bg2 {[%clk 0:02:58]}  d5 {[%clk 0:02:56]} 4. Qb3 {[%clk 0:02:54]}  Nf6 {[%clk 0:02:54]} 5. cxd5 {[%clk 0:02:46]}  cxd5 {[%clk 0:02:53]} 6. Nc3 {[%clk 0:02:47]}  e6 {[%clk 0:02:34]} 7. d4 {[%clk 0:02:46]}  Bg7 {[%clk 0:02:33]} 8. Nf3 {[%clk 0:02:46]}  O-O {[%clk 0:02:32]} 9. O-O {[%clk 0:02:46]}  Nc6 {[%clk 0:02:27]} 10. Bf4 {[%clk 0:02:45]}  Ne4 {[%clk 0:02:25]} 11. Rfd1 {[%clk 0:02:42]}  Nxc3 {[%clk 0:02:02]} 12. bxc3 {[%clk 0:02:41]}  b6 {[%clk 0:02:01]} 13. h4 {[%clk 0:02:36]}  Bb7 {[%clk 0:01:56]} 14. h5 {[%clk 0:02:30]}  Rc8 {[%clk 0:01:56]} 15. h6 {[%clk 0:02:30]}  Bf6 {[%clk 0:01:55]} 16. g4 {[%clk 0:02:21]}  Qd7 {[%clk 0:01:37]} 17. Rac1 {[%clk 0:02:10]}  Ba6 {[%clk 0:01:30]} 18. Re1 {[%clk 0:02:06]}  Rfe8 {[%clk 0:01:21]} 19. g5 {[%clk 0:01:59]}  Bd8 {[%clk 0:01:09]} 20. e4 {[%clk 0:01:59]}  Bc4 {[%clk 0:00:52]} 21. Qb1 {[%clk 0:01:53]}  dxe4 {[%clk 0:00:51]} 22. Qxe4 {[%clk 0:01:53]}  Bd5 {[%clk 0:00:51]} 23. Qe3 {[%clk 0:01:53]}  Bc7 {[%clk 0:00:36]} 24. Bxc7 {[%clk 0:01:46]}  Qxc7 {[%clk 0:00:32]} 25. c4 {[%clk 0:01:44]}  Bxf3 {[%clk 0:00:32]} 26. Bxf3 {[%clk 0:01:42]}  e5 {[%clk 0:00:32]} 27. Bxc6 {[%clk 0:01:38]}  Qxc6 {[%clk 0:00:33]} 28. dxe5 {[%clk 0:01:37]}  Re6 {[%clk 0:00:32]} 29. Qf4 {[%clk 0:01:30]}  Rce8 {[%clk 0:00:32]} 30. Rcd1 {[%clk 0:01:30]}  Qc5 {[%clk 0:00:28]} 31. Rd7 {[%clk 0:01:28]}  Qf8 {[%clk 0:00:22]} 32. Rxa7 {[%clk 0:01:24]} 1-0


[Site "https://www.chess.com"]

[Event "Titled Tuesday Blitz September 28 2021"]
[White "Tristan, Leonardo"]
[Black "Bok, Benjamin"]
[WhiteFideId "113816"]
[BlackFideId "1017063"]
[WhiteElo "2728"]
[BlackElo "2989"]
[Result "1-0"]
[Round "03"]
[TimeControl "180+1"]
[Date "2021.09.28"]
[WhiteClock "0:00:17"]
[BlackClock "0:00:05"]

1. d4 {[%clk 0:03:00]}  Nf6 {[%clk 0:02:58]} 2. Nf3 {[%clk 0:03:01]}  d5 {[%clk 0:02:58]} 3. Bf4 {[%clk 0:03:01]}  c5 {[%clk 0:02:58]} 4. e3 {[%clk 0:03:01]}  Nc6 {[%clk 0:02:57]} 5. Nbd2 {[%clk 0:03:02]}  Qb6 {[%clk 0:02:57]} 6. dxc5 {[%clk 0:03:02]}  Qxb2 {[%clk 0:02:58]} 7. Rb1 {[%clk 0:03:02]}  Qc3 {[%clk 0:02:57]} 8. Bb5 {[%clk 0:03:02]}  g6 {[%clk 0:02:57]} 9. e4 {[%clk 0:03:03]}  dxe4 {[%clk 0:02:39]} 10. Be5 {[%clk 0:03:03]}  Qa5 {[%clk 0:02:37]} 11. O-O {[%clk 0:03:03]}  exf3 {[%clk 0:02:23]} 12. Qxf3 {[%clk 0:03:04]}  Qxb5 {[%clk 0:01:22]} 13. Rxb5 {[%clk 0:02:57]}  Nxe5 {[%clk 0:01:22]} 14. Qe2 {[%clk 0:01:44]}  Nc6 {[%clk 0:01:21]} 15. Nc4 {[%clk 0:01:44]}  Bh6 {[%clk 0:00:38]} 16. Nd6+ {[%clk 0:01:40]}  Kf8 {[%clk 0:00:38]} 17. Nxc8 {[%clk 0:01:40]}  Rxc8 {[%clk 0:00:39]} 18. Rxb7 {[%clk 0:01:40]}  Kg7 {[%clk 0:00:39]} 19. f4 {[%clk 0:01:36]}  Rhe8 {[%clk 0:00:24]} 20. g4 {[%clk 0:01:35]}  g5 {[%clk 0:00:23]} 21. h4 {[%clk 0:01:36]}  gxf4 {[%clk 0:00:11]} 22. g5 {[%clk 0:01:36]}  Bxg5 {[%clk 0:00:10]} 23. hxg5 {[%clk 0:01:36]}  Nd5 {[%clk 0:00:10]} 24. c4 {[%clk 0:01:32]}  Nc7 {[%clk 0:00:03]} 25. Rxf4 {[%clk 0:01:30]}  Ne6 {[%clk 0:00:04]} 26. Rh4 {[%clk 0:00:49]}  Nxg5 {[%clk 0:00:02]} 27. Qh5 {[%clk 0:00:44]}  f6 {[%clk 0:00:02]} 28. Rb2 {[%clk 0:00:30]}  Ne5 {[%clk 0:00:02]} 29. Rg2 {[%clk 0:00:29]}  Ng6 {[%clk 0:00:01]} 30. Rxg5 {[%clk 0:00:26]}  fxg5 {[%clk 0:00:02]} 31. Qxh7+ {[%clk 0:00:27]}  Kf6 {[%clk 0:00:03]} 32. Rh6 {[%clk 0:00:27]}  Rg8 {[%clk 0:00:02]} 33. Rh2 {[%clk 0:00:21]}  Rb8 {[%clk 0:00:02]} 34. Rf2+ {[%clk 0:00:21]}  Nf4 {[%clk 0:00:02]} 35. Qe4 {[%clk 0:00:19]}  e5 {[%clk 0:00:02]} 36. c6 {[%clk 0:00:19]}  Rh8 {[%clk 0:00:01]} 37. c7 {[%clk 0:00:18]}  Rbc8 {[%clk 0:00:02]} 38. Qc6+ {[%clk 0:00:18]}  Kf5 {[%clk 0:00:02]} 39. Qd7+ {[%clk 0:00:19]}  Kf6 {[%clk 0:00:02]} 40. Rh2 {[%clk 0:00:19]}  e4 {[%clk 0:00:02]} 41. Rxh8 {[%clk 0:00:19]}  Rxh8 {[%clk 0:00:01]} 42. Qd8+ {[%clk 0:00:19]}  Rxd8 {[%clk 0:00:01]} 43. cxd8=Q+ {[%clk 0:00:20]}  Kf5 {[%clk 0:00:02]} 44. c5 {[%clk 0:00:20]}  e3 {[%clk 0:00:02]} 45. c6 {[%clk 0:00:20]}  e2 {[%clk 0:00:02]} 46. Kf2 {[%clk 0:00:20]}  g4 {[%clk 0:00:03]} 47. c7 {[%clk 0:00:17]}  g3+ {[%clk 0:00:03]} 48. Ke1 {[%clk 0:00:17]}  g2 {[%clk 0:00:04]} 49. c8=Q+ {[%clk 0:00:17]}  Ke4 {[%clk 0:00:04]} 50. Qc4+ {[%clk 0:00:17]}  Ke3 {[%clk 0:00:05]} 51. Qdd4+ {[%clk 0:00:17]} 1-0


[Site "https://www.chess.com"]

[Event "Titled Tuesday Blitz September 28 2021"]
[White "Veiga, Emerson de Sousa"]
[Black "Aitbayev, Aslan"]
[WhiteFideId "2151898"]
[BlackFideId "13704613"]
[WhiteElo "2034"]
[BlackElo "2417"]
[Result "0-1"]
[Round "03"]
[TimeControl "180+1"]
[Date "2021.09.28"]
[WhiteClock "0:00:01"]
[BlackClock "0:01:17"]

1. e4 {[%clk 0:03:00]}  e6 {[%clk 0:02:59]} 2. d4 {[%clk 0:03:00]}  d5 {[%clk 0:03:00]} 3. Nc3 {[%clk 0:03:00]}  Bb4 {[%clk 0:03:00]} 4. Ne2 {[%clk 0:02:58]}  dxe4 {[%clk 0:03:00]} 5. a3 {[%clk 0:02:52]}  Be7 {[%clk 0:03:01]} 6. Nxe4 {[%clk 0:02:52]}  Nf6 {[%clk 0:03:01]} 7. Ng5 {[%clk 0:02:50]}  Nc6 {[%clk 0:02:54]} 8. Be3 {[%clk 0:02:50]}  Nd5 {[%clk 0:02:53]} 9. Nf3 {[%clk 0:02:36]}  O-O {[%clk 0:02:52]} 10. Qd2 {[%clk 0:02:36]}  b6 {[%clk 0:02:48]} 11. c4 {[%clk 0:02:30]}  Nxe3 {[%clk 0:02:47]} 12. fxe3 {[%clk 0:02:27]}  Bb7 {[%clk 0:02:44]} 13. Ng3 {[%clk 0:02:25]}  Na5 {[%clk 0:02:38]} 14. Qc2 {[%clk 0:02:16]}  c5 {[%clk 0:02:38]} 15. Bd3 {[%clk 0:02:12]}  Bxf3 {[%clk 0:02:34]} 16. gxf3 {[%clk 0:02:12]}  cxd4 {[%clk 0:02:35]} 17. Bxh7+ {[%clk 0:02:09]}  Kh8 {[%clk 0:02:35]} 18. O-O-O {[%clk 0:02:07]}  Rc8 {[%clk 0:02:18]} 19. Rxd4 {[%clk 0:02:03]}  Qxd4 {[%clk 0:02:18]} 20. exd4 {[%clk 0:02:03]}  Rxc4 {[%clk 0:02:19]} 21. Qxc4 {[%clk 0:01:11]}  Nxc4 {[%clk 0:02:19]} 22. Bd3 {[%clk 0:01:04]}  Rc8 {[%clk 0:02:19]} 23. Kb1 {[%clk 0:00:46]}  Nd2+ {[%clk 0:02:06]} 24. Ka2 {[%clk 0:00:45]}  Bf6 {[%clk 0:02:02]} 25. d5 {[%clk 0:00:25]}  exd5 {[%clk 0:01:59]} 26. f4 {[%clk 0:00:25]}  Nc4 {[%clk 0:01:48]} 27. b3 {[%clk 0:00:16]}  Ne3 {[%clk 0:01:47]} 28. Ne2 {[%clk 0:00:09]}  g6 {[%clk 0:01:35]} 29. h4 {[%clk 0:00:06]}  Kg7 {[%clk 0:01:33]} 30. h5 {[%clk 0:00:06]}  Rh8 {[%clk 0:01:33]} 31. Ng3 {[%clk 0:00:06]}  Ng2 {[%clk 0:01:28]} 32. Rg1 {[%clk 0:00:01]}  Nxf4 {[%clk 0:01:26]} 33. Bc2 {[%clk 0:00:02]}  Nxh5 {[%clk 0:01:23]} 34. Nf5+ {[%clk 0:00:02]}  Kf8 {[%clk 0:01:23]} 35. Nd6 {[%clk 0:00:02]}  Nf4 {[%clk 0:01:20]} 36. Nb5 {[%clk 0:00:02]}  Rh2 {[%clk 0:01:20]} 37. Kb1 {[%clk 0:00:01]}  a6 {[%clk 0:01:18]} 38. Nc7 {[%clk 0:00:01]}  Be5 {[%clk 0:01:17]} 0-1


[Site "https://www.chess.com"]

[Event "Titled Tuesday Blitz September 28 2021"]
[White "Viani Antonio Dcunha"]
[Black "Salinas Herrera, Pablo"]
[WhiteFideId "5027330"]
[BlackFideId "3407128"]
[WhiteElo "2605"]
[BlackElo "2835"]
[Result "1/2-1/2"]
[Round "03"]
[TimeControl "180+1"]
[Date "2021.09.28"]
[WhiteClock "0:00:06"]
[BlackClock "0:00:04"]

1. e4 {[%clk 0:03:00]}  e5 {[%clk 0:02:58]} 2. Nf3 {[%clk 0:02:59]}  Nc6 {[%clk 0:02:58]} 3. d4 {[%clk 0:02:59]}  exd4 {[%clk 0:02:58]} 4. Nxd4 {[%clk 0:02:59]}  Nf6 {[%clk 0:02:59]} 5. Nc3 {[%clk 0:02:58]}  Bb4 {[%clk 0:02:59]} 6. Nxc6 {[%clk 0:02:58]}  bxc6 {[%clk 0:02:59]} 7. Bd3 {[%clk 0:02:58]}  d5 {[%clk 0:03:00]} 8. exd5 {[%clk 0:02:59]}  O-O {[%clk 0:03:00]} 9. O-O {[%clk 0:02:58]}  cxd5 {[%clk 0:03:01]} 10. Bg5 {[%clk 0:02:58]}  c6 {[%clk 0:03:01]} 11. Qf3 {[%clk 0:02:58]}  h6 {[%clk 0:02:59]} 12. Bxf6 {[%clk 0:02:57]}  Qxf6 {[%clk 0:03:00]} 13. Qxf6 {[%clk 0:02:57]}  gxf6 {[%clk 0:03:01]} 14. Ne2 {[%clk 0:02:54]}  Re8 {[%clk 0:03:00]} 15. Nd4 {[%clk 0:02:46]}  Bd7 {[%clk 0:02:50]} 16. Nf5 {[%clk 0:02:27]}  Bf8 {[%clk 0:02:47]} 17. Rfe1 {[%clk 0:02:24]}  Re5 {[%clk 0:02:44]} 18. g4 {[%clk 0:02:16]}  Rae8 {[%clk 0:02:43]} 19. Kf1 {[%clk 0:02:15]}  h5 {[%clk 0:02:42]} 20. h3 {[%clk 0:02:13]}  hxg4 {[%clk 0:02:40]} 21. hxg4 {[%clk 0:02:14]}  c5 {[%clk 0:02:40]} 22. b3 {[%clk 0:02:14]}  Bc6 {[%clk 0:02:22]} 23. f4 {[%clk 0:02:09]}  R5e6 {[%clk 0:02:22]} 24. c4 {[%clk 0:02:01]}  d4 {[%clk 0:02:18]} 25. Kf2 {[%clk 0:02:00]}  a5 {[%clk 0:02:13]} 26. Re2 {[%clk 0:01:47]}  Rxe2+ {[%clk 0:02:05]} 27. Bxe2 {[%clk 0:01:48]}  Re4 {[%clk 0:02:06]} 28. Ng3 {[%clk 0:01:19]}  Rxf4+ {[%clk 0:02:04]} 29. Ke1 {[%clk 0:01:19]}  d3 {[%clk 0:01:39]} 30. Bxd3 {[%clk 0:01:04]}  Rf3 {[%clk 0:01:38]} 31. Nh5 {[%clk 0:00:34]}  Rxd3 {[%clk 0:01:37]} 32. Nxf6+ {[%clk 0:00:34]}  Kg7 {[%clk 0:01:37]} 33. Nh5+ {[%clk 0:00:34]}  Kh6 {[%clk 0:01:34]} 34. Ke2 {[%clk 0:00:33]}  Rd4 {[%clk 0:01:27]} 35. Rf1 {[%clk 0:00:31]}  Be7 {[%clk 0:01:04]} 36. Rxf7 {[%clk 0:00:26]}  Bg5 {[%clk 0:00:57]} 37. Rc7 {[%clk 0:00:19]}  Rd2+ {[%clk 0:00:54]} 38. Ke1 {[%clk 0:00:16]}  Bf3 {[%clk 0:00:48]} 39. Ng3 {[%clk 0:00:16]}  Rxa2 {[%clk 0:00:31]} 40. Rxc5 {[%clk 0:00:11]}  Bd2+ {[%clk 0:00:30]} 41. Kf1 {[%clk 0:00:11]}  Bg2+ {[%clk 0:00:29]} 42. Kxg2 {[%clk 0:00:10]}  Be3+ {[%clk 0:00:29]} 43. Kf3 {[%clk 0:00:10]}  Bxc5 {[%clk 0:00:30]} 44. g5+ {[%clk 0:00:10]}  Kg6 {[%clk 0:00:29]} 45. Ke4 {[%clk 0:00:10]}  Kxg5 {[%clk 0:00:28]} 46. Kd5 {[%clk 0:00:10]}  Bb4 {[%clk 0:00:28]} 47. c5 {[%clk 0:00:10]}  Kf4 {[%clk 0:00:26]} 48. Nh5+ {[%clk 0:00:09]}  Kg5 {[%clk 0:00:23]} 49. Ng7 {[%clk 0:00:08]}  Kf6 {[%clk 0:00:17]} 50. Ne8+ {[%clk 0:00:08]}  Ke7 {[%clk 0:00:17]} 51. Nc7 {[%clk 0:00:06]}  Rd2+ {[%clk 0:00:16]} 52. Kc6 {[%clk 0:00:06]}  Rc2 {[%clk 0:00:17]} 53. Na6 {[%clk 0:00:06]}  Ke6 {[%clk 0:00:16]} 54. Kb6 {[%clk 0:00:05]}  Kd5 {[%clk 0:00:16]} 55. Nc7+ {[%clk 0:00:04]}  Kd4 {[%clk 0:00:14]} 56. c6 {[%clk 0:00:04]}  Ke5 {[%clk 0:00:09]} 57. Nb5 {[%clk 0:00:04]}  Bc5+ {[%clk 0:00:03]} 58. Kb7 {[%clk 0:00:04]}  Be7 {[%clk 0:00:03]} 59. c7 {[%clk 0:00:04]}  Rc5 {[%clk 0:00:02]} 60. c8=Q {[%clk 0:00:04]}  Rxb5+ {[%clk 0:00:02]} 61. Ka6 {[%clk 0:00:04]}  Rc5 {[%clk 0:00:01]} 62. Qb7 {[%clk 0:00:04]}  Bd6 {[%clk 0:00:02]} 63. b4 {[%clk 0:00:04]}  axb4 {[%clk 0:00:03]} 64. Qxb4 {[%clk 0:00:04]}  Rc6+ {[%clk 0:00:03]} 65. Qb6 {[%clk 0:00:05]}  Rxb6+ {[%clk 0:00:04]} 66. Kxb6 {[%clk 0:00:06]} 1/2-1/2


[Site "https://www.chess.com"]

[Event "Titled Tuesday Blitz September 28 2021"]
[White "Vlachos, Anatole"]
[Black "Nguyen, Ngoc Truong Son"]
[WhiteFideId "26093189"]
[BlackFideId "12401110"]
[WhiteElo "2350"]
[BlackElo "2596"]
[Result "0-1"]
[Round "03"]
[TimeControl "180+1"]
[Date "2021.09.28"]
[WhiteClock "0:01:53"]
[BlackClock "0:01:04"]

1. e4 {[%clk 0:03:00]}  c5 {[%clk 0:02:59]} 2. Nf3 {[%clk 0:03:00]}  e6 {[%clk 0:03:00]} 3. d4 {[%clk 0:03:00]}  cxd4 {[%clk 0:03:01]} 4. Nxd4 {[%clk 0:03:01]}  a6 {[%clk 0:02:59]} 5. Bd3 {[%clk 0:03:00]}  Bc5 {[%clk 0:02:52]} 6. Nb3 {[%clk 0:03:00]}  Be7 {[%clk 0:02:42]} 7. c4 {[%clk 0:03:00]}  Nc6 {[%clk 0:02:42]} 8. Nc3 {[%clk 0:03:00]}  Nf6 {[%clk 0:02:41]} 9. O-O {[%clk 0:03:00]}  O-O {[%clk 0:02:40]} 10. f4 {[%clk 0:02:57]}  d6 {[%clk 0:02:36]} 11. Be3 {[%clk 0:02:53]}  Nd7 {[%clk 0:02:14]} 12. g4 {[%clk 0:02:43]}  b6 {[%clk 0:02:13]} 13. g5 {[%clk 0:02:40]}  Nc5 {[%clk 0:02:10]} 14. Bc2 {[%clk 0:02:38]}  e5 {[%clk 0:02:00]} 15. Nd5 {[%clk 0:02:32]}  exf4 {[%clk 0:01:59]} 16. Nxe7+ {[%clk 0:02:31]}  Qxe7 {[%clk 0:01:57]} 17. Bxf4 {[%clk 0:02:32]}  Ne5 {[%clk 0:01:58]} 18. Nd4 {[%clk 0:02:29]}  g6 {[%clk 0:01:49]} 19. b3 {[%clk 0:02:20]}  Bb7 {[%clk 0:01:48]} 20. Qe2 {[%clk 0:02:16]}  Rae8 {[%clk 0:01:23]} 21. Rae1 {[%clk 0:02:14]}  f6 {[%clk 0:01:20]} 22. h4 {[%clk 0:02:14]}  Ne6 {[%clk 0:01:14]} 23. Nxe6 {[%clk 0:02:10]}  Qxe6 {[%clk 0:01:15]} 24. Qe3 {[%clk 0:02:01]}  fxg5 {[%clk 0:01:05]} 25. Bxg5 {[%clk 0:01:59]}  Qg4+ {[%clk 0:01:04]} 26. Kh2 {[%clk 0:01:59]}  Nf3+ {[%clk 0:01:04]} 27. Rxf3 {[%clk 0:01:56]}  Rxf3 {[%clk 0:01:04]} 28. Qxb6 {[%clk 0:01:53]}  Rh3# {[%clk 0:01:04]} 0-1


[Site "https://www.chess.com"]